bitfinex-derivatives/quotes_SOLF0:USTF0_20250331
["timestamp","ask_amount","ask_price","bid_price","bid_amount"]
[1743397409410,0.05243511,125.26,125.23,37.55492994]
[1743397409614,0.05243511,125.26,125.25,7.93679341]
[1743397410113,7.981,125.31,125.25,7.93679341]
[1743397410312,15.91779341,125.31,125.26,99.49679341]
[1743397410509,15.91779341,125.31,125.26,107.48049341]
[1743397410910,15.91779341,125.31,125.26,99.49679341]
[1743397411112,7.981,125.31,125.27,7.983]
[1743397411313,0.05913142,125.3,125.27,8.03984256]
[1743397411709,8.04063142,125.3,125.27,0.05684256]
[1743397412313,0.05913142,125.3,125.27,8.04014256]
[1743397413114,0.05913142,125.3,125.28,7.9826]
[1743397413615,0.05913142,125.3,125.27,8.03994256]
[1743397413812,0.05913142,125.3,125.27,0.05684256]
[1743397414821,1.38883346,125.43,125.28,12.38259757]
[1743397415009,2.7589,125.38,125.3,12.38259757]
[1743397415813,12.38259757,125.43,125.34,12.38259757]
[1743397416117,17.77299757,125.43,125.35,30.2]
[1743397416306,0.02107884,125.4,125.37,0.0555796]
[1743397417719,7.99617884,125.4,125.37,0.0555796]
[1743397417918,0.02107884,125.4,125.37,0.0555796]
[1743397418318,7.99657884,125.4,125.37,0.0555796]
[1743397418520,7.99657884,125.4,125.38,62.0]
[1743397419521,0.02107884,125.4,125.38,62.0]
[1743397419917,0.02107884,125.4,125.38,92.3]
[1743397420821,0.02107884,125.4,125.38,100.2762]
[1743397421720,12.38259757,125.47,125.38,104.68259757]
[1743397421921,2.5412,125.48,125.38,104.68259757]
[1743397422123,7.9716,125.46,125.41,7.9741]
[1743397422322,12.38259757,125.47,125.41,30.28]
[1743397422620,7.973,125.44,125.41,30.28]
[1743397422825,12.38259757,125.43,125.38,62.0]
[1743397423025,2.5412,125.42,125.41,0.05392589]
[1743397423320,2.5412,125.42,125.37,30.3]
[1743397423823,7.9763,125.38,125.37,30.3]
[1743397425326,8.02992589,125.39,125.37,30.3]
[1743397426021,8.02992589,125.39,125.37,92.3]
[1743397426626,0.05392589,125.39,125.37,92.3]
[1743397427321,8.03002589,125.39,125.37,92.3]
[1743397427526,0.05392589,125.39,125.37,92.3]
[1743397428526,7.9763,125.38,125.37,92.3]
[1743397428726,0.05392589,125.39,125.37,92.3]
[1743397429026,8.02992589,125.39,125.37,92.3]
[1743397430028,0.05392589,125.39,125.37,92.3]
[1743397430628,8.02972589,125.39,125.37,92.3]
[1743397431028,0.05392589,125.39,125.37,92.3]
[1743397433617,0.05392589,125.39,125.38,7.9763]
[1743397435429,0.05392589,125.39,125.37,38.2767]
[1743397435731,0.05392589,125.39,125.37,30.3]
[1743397436525,0.05392589,125.39,125.36,0.05059208]
[1743397436729,8.02972589,125.39,125.36,100.58799208]
[1743397437729,0.05392589,125.39,125.36,100.58799208]
[1743397439132,0.05392589,125.39,125.37,7.9768]
[1743397439337,0.05392589,125.39,125.36,92.61059208]
[1743397439925,0.05392589,125.39,125.37,7.977]
[1743397440436,0.05392589,125.39,125.36,92.61059208]
[1743397440935,12.38259757,125.46,125.36,92.61059208]
[1743397441137,12.38259757,125.45,125.36,104.94259757]
[1743397441740,7.9736,125.43,125.36,104.94259757]
[1743397441936,12.38259757,125.46,125.36,104.94259757]
[1743397442131,17.88489757,125.47,125.38,12.43655584]
[1743397442335,7.9714,125.46,125.43,7.9728]
[1743397442739,17.88489757,125.47,125.42,30.48]
[1743397443241,25.85589757,125.47,125.42,30.48]
[1743397443441,17.88489757,125.47,125.42,30.48]
[1743397443740,25.85579757,125.47,125.43,7.9728]
[1743397443936,13.4732,125.47,125.43,7.9728]
[1743397444140,2.754,125.47,125.44,0.0570223]
[1743397444341,2.754,125.47,125.44,8.0290223]
[1743397444736,2.754,125.47,125.44,0.0570223]
[1743397444942,10.725,125.47,125.44,0.0570223]
[1743397445137,2.754,125.47,125.44,0.0570223]
[1743397445335,15.13659757,125.47,125.44,0.0570223]
[1743397445533,7.9719,125.45,125.44,0.0570223]
[1743397445731,15.13659757,125.47,125.44,0.0570223]
[1743397445937,10.7246,125.47,125.44,0.0570223]
[1743397446136,2.754,125.47,125.44,0.0570223]
[1743397446736,2.7274,125.5,125.44,0.0570223]
[1743397446945,7.9698,125.49,125.45,69.9714]
[1743397447342,12.38259757,125.51,125.45,62.0]
[1743397447942,7.969,125.5,125.47,0.06018889]
[1743397448347,12.38259757,125.51,125.47,0.06018889]
[1743397448641,12.38259757,125.49,125.47,0.06018889]
[1743397448942,7.97,125.48,125.47,0.06018889]
[1743397449138,12.38259757,125.49,125.42,30.5]
[1743397449536,7.9711,125.47,125.43,7.9727]
[1743397449736,12.38259757,125.49,125.42,30.5]
[1743397449940,12.38259757,125.45,125.39,30.5]
[1743397450142,7.9736,125.43,125.39,38.4755]
[1743397450440,8.02445198,125.43,125.41,0.05590293]
[1743397450743,7.9738,125.42,125.41,0.05590293]
[1743397450942,0.05085198,125.43,125.41,0.05590293]
[1743397452247,0.05085198,125.43,125.42,62.0]
[1743397454349,0.05085198,125.43,125.41,0.05590293]
[1743397455643,0.05085198,125.43,125.41,8.03020293]
[1743397456148,0.05085198,125.43,125.42,7.9738]
[1743397457351,0.05085198,125.43,125.42,69.9738]
[1743397457551,362.0,125.53,125.46,7.9711]
[1743397457750,7.9694,125.49,125.46,7.9711]
[1743397458754,7.9694,125.49,125.46,0.05050121]
[1743397459053,5.3517,125.5,125.46,0.05050121]
[1743397459257,12.38259757,125.49,125.46,0.05050121]
[1743397459554,7.9705,125.48,125.46,0.05050121]
[1743397459750,12.38259757,125.49,125.46,0.05050121]
[1743397459956,7.9719,125.46,125.42,7.9735]
[1743397461059,0.05450607,125.45,125.43,62.06012472]
[1743397461354,8.02640607,125.45,125.43,62.06012472]
[1743397461558,8.02640607,125.45,125.43,0.06012472]
[1743397462056,0.05450607,125.45,125.43,0.06012472]
[1743397462354,0.05450607,125.45,125.43,8.03292472]
[1743397462749,0.05450607,125.45,125.43,0.06012472]
[1743397463460,8.02650607,125.45,125.43,0.06012472]
[1743397463953,0.05450607,125.45,125.43,0.06012472]
[1743397465848,0.05450607,125.45,125.43,8.03292472]
[1743397466960,7.967,125.53,125.44,30.36]
[1743397467162,2.7317,125.56,125.46,12.38259757]
[1743397467356,15.11429757,125.56,125.47,30.7]
[1743397467659,7.9659,125.55,125.5,7.9687]
[1743397467850,12.38259757,125.54,125.47,30.7]
[1743397468050,12.38259757,125.54,125.48,7.9696]
[1743397468257,12.38259757,125.54,125.49,0.06000211]
[1743397468662,7.9669,125.53,125.49,0.06000211]
[1743397469051,20.34909757,125.54,125.49,8.02920211]
[1743397469460,12.38259757,125.54,125.49,0.06000211]
[1743397469660,12.38259757,125.54,125.5,7.9686]
[1743397470450,20.34909757,125.54,125.49,70.02910211]
[1743397470656,20.34909757,125.54,125.49,62.06000211]
[1743397471357,20.34909757,125.54,125.5,7.9686]
[1743397471558,7.9672,125.53,125.49,62.06000211]
[1743397471862,43.02259757,125.52,125.49,0.06000211]
[1743397472067,33.2864,125.51,125.49,0.06000211]
[1743397472260,41.2549,125.51,125.49,0.06000211]
[1743397472563,33.2864,125.51,125.49,0.06000211]
[1743397472966,7.9687,125.5,125.49,0.06000211]
[1743397475363,41.2547,125.51,125.49,0.06000211]
[1743397475560,12.38259757,125.5,125.39,43.10259757]
[1743397475862,20.35369757,125.47,125.39,43.10259757]
[1743397476060,43.12259757,125.47,125.39,43.10259757]
[1743397476357,7.9717,125.46,125.39,43.10259757]
[1743397476565,43.12259757,125.47,125.4,7.9749]
[1743397476753,0.05387332,125.44,125.41,0.05472349]
[1743397478473,0.05387332,125.44,125.42,62.0]
[1743397479269,8.02647332,125.44,125.42,62.0]
[1743397479669,0.05387332,125.44,125.42,62.0]
[1743397480066,0.05387332,125.44,125.41,0.05472349]
[1743397480467,8.02677332,125.44,125.41,0.05472349]
[1743397481068,43.08259757,125.43,125.41,0.05472349]
[1743397481270,12.38259757,125.41,125.35,358.0]
[1743397481472,12.38259757,125.41,125.36,7.9772]
[1743397481973,43.08259757,125.43,125.36,7.9772]
[1743397482167,43.08259757,125.43,125.34,43.08259757]
[1743397482375,0.05703816,125.41,125.38,0.05999091]
[1743397483072,0.05703816,125.41,125.39,62.0]
[1743397483772,8.03153816,125.41,125.39,62.0]
[1743397485275,7.9751,125.4,125.39,62.0]
[1743397486375,8.03173816,125.41,125.39,62.0]
[1743397486874,0.05703816,125.41,125.39,62.0]
[1743397487073,7.9751,125.4,125.39,62.0]
[1743397489577,38.76,125.4,125.31,1.38775347]
[1743397489774,38.76,125.4,125.22,12.38259757]
[1743397489775,12.38259757,125.33,125.22,12.38259757]
[1743397490080,43.20259757,125.33,125.25,7.9842]
[1743397490272,7.9821,125.3,125.25,7.9842]
[1743397490978,0.05632924,125.29,125.26,43.2585186]
[1743397491179,12.38259757,125.35,125.27,33.2566]
[1743397491877,7.9804,125.32,125.27,41.2395]
[1743397492277,7.9804,125.32,125.28,0.05895115]
[1743397492475,0.0544145,125.31,125.28,0.05895115]
[1743397492681,8.0356145,125.31,125.29,62.0]
[1743397492982,0.0544145,125.31,125.29,62.0]
[1743397494585,7.9814,125.3,125.29,62.0]
[1743397495177,8.0354145,125.31,125.29,62.0]
[1743397496373,7.9814,125.3,125.29,62.0]
[1743397497280,8.0354145,125.31,125.29,62.0]
[1743397497673,0.0544145,125.31,125.29,62.0]
[1743397498281,7.9814,125.3,125.29,62.0]
[1743397498873,8.0354145,125.31,125.29,62.0]
[1743397499279,7.9814,125.3,125.29,62.0]
[1743397499479,0.0544145,125.31,125.29,62.0]
[1743397499782,0.0544145,125.31,125.29,69.9817]
[1743397499987,0.0544145,125.31,125.3,30.66]
[1743397500483,12.38259757,125.35,125.3,30.66]
[1743397500685,12.38259757,125.37,125.3,30.66]
[1743397500989,7.9793,125.34,125.3,38.6413]
[1743397501586,7.9796,125.33,125.3,30.66]
[1743397501889,0.05150677,125.33,125.31,0.05279857]
[1743397502080,7.9802,125.32,125.31,0.05279857]
[1743397502783,8.03130677,125.33,125.31,0.05279857]
[1743397503186,0.05150677,125.33,125.32,62.0]
[1743397503888,8.03100677,125.33,125.32,62.0]
[1743397504291,0.05150677,125.33,125.32,62.0]
[1743397504893,8.03100677,125.33,125.32,62.0]
[1743397505798,0.05150677,125.33,125.32,62.0]
[1743397507197,8.03100677,125.33,125.32,62.0]
[1743397507993,0.05150677,125.33,125.32,62.0]
[1743397509689,0.05150677,125.33,125.32,69.9802]
[1743397509898,15.02129757,125.39,125.32,92.56]
[1743397510092,15.02129757,125.39,125.32,104.94259757]
[1743397510292,2.6387,125.39,125.37,7.9767]
[1743397510494,12.38259757,125.41,125.37,7.9767]
[1743397511098,12.38259757,125.41,125.38,0.05994717]
[1743397511493,12.38259757,125.41,125.38,8.03624717]
[1743397512092,12.38259757,125.41,125.38,0.05994717]
[1743397512896,12.38259757,125.41,125.38,8.03614717]
[1743397514400,20.35739757,125.41,125.38,0.05994717]
[1743397515396,7.9751,125.4,125.38,0.05994717]
[1743397517103,20.35719757,125.41,125.38,0.05994717]
[1743397519101,20.35719757,125.41,125.38,8.03624717]
[1743397520203,20.35719757,125.41,125.38,0.05994717]
[1743397520405,12.38259757,125.41,125.38,0.05994717]
[1743397520706,12.38259757,125.39,125.34,7.9786]
[1743397521005,7.9773,125.37,125.34,7.9786]
[1743397521401,12.38259757,125.46,125.33,30.34]
[1743397521605,20.35539757,125.44,125.35,12.38259757]
[1743397521902,12.38259757,125.44,125.38,0.05500145]
[1743397522104,0.05533259,125.41,125.39,7.9755]
[1743397524312,0.05533259,125.41,125.38,0.05500145]
[1743397526814,0.05533259,125.41,125.4,7.9751]
[1743397528210,2.5799,125.47,125.4,7.9751]
[1743397528413,2.5799,125.47,125.45,7.9719]
[1743397529118,2.5799,125.47,125.42,30.22]
[1743397529412,2.5799,125.47,125.43,0.0521085]
[1743397529615,0.02401838,125.46,125.43,0.0521085]
[1743397530214,0.02401838,125.46,125.43,8.0247085]
[1743397531321,0.02401838,125.46,125.44,62.0]
[1743397532609,0.02401838,125.46,125.44,69.9725]
[1743397533124,0.02401838,125.46,125.44,62.0]
[1743397533820,0.02401838,125.46,125.44,69.9721]
[1743397535217,0.02401838,125.46,125.44,62.0]
[1743397535422,0.02401838,125.46,125.43,0.0521085]
[1743397536224,7.99551838,125.46,125.43,0.0521085]
[1743397536925,7.99551838,125.46,125.43,8.0251085]
[1743397537920,0.02401838,125.46,125.43,8.0251085]
[1743397539228,0.02401838,125.46,125.44,7.9725]
[1743397539426,7.99531838,125.46,125.44,7.9725]
[1743397539625,0.02401838,125.46,125.43,0.0521085]
[1743397540329,7.99561838,125.46,125.43,8.0248085]
[1743397540823,0.02401838,125.46,125.43,0.0521085]
[1743397541018,7.9721,125.45,125.43,0.0521085]
[1743397541328,0.02401838,125.46,125.43,0.0521085]
[1743397541628,0.02401838,125.46,125.44,62.0]
[1743397541829,7.99571838,125.46,125.43,8.0252085]
[1743397542127,0.02401838,125.46,125.43,0.0521085]
[1743397543130,7.99541838,125.46,125.43,8.0249085]
[1743397543625,15.90115833,125.46,125.43,8.0249085]
[1743397544531,7.90573995,125.45,125.43,0.0521085]
[1743397544735,7.90573995,125.44,125.43,0.0521085]
[1743397545130,7.99551838,125.46,125.43,8.0249085]
[1743397546233,0.02401838,125.46,125.44,7.9724]
[1743397546531,0.02401838,125.46,125.43,0.0521085]
[1743397546724,0.02401838,125.46,125.44,7.9724]
[1743397547130,0.02401838,125.46,125.43,0.0521085]
[1743397547324,7.99531838,125.46,125.43,0.0521085]
[1743397547533,0.02401838,125.46,125.43,0.0521085]
[1743397547833,0.02401838,125.46,125.44,7.9725]
[1743397548030,0.02401838,125.46,125.43,0.0521085]
[1743397548335,0.02401838,125.46,125.44,91.9]
[1743397549232,0.02401838,125.46,125.45,7.9719]
[1743397550132,12.35127346,125.53,125.48,7.9695]
[1743397550731,7.9681,125.52,125.48,7.9695]
[1743397551130,12.35127346,125.53,125.48,7.9695]
[1743397551331,12.35127346,125.53,125.49,0.06084763]
[1743397552132,3.5905,125.56,125.5,42.23127346]
[1743397552434,7.9641,125.58,125.53,7.9668]
[1743397552732,7.9641,125.58,125.54,0.06119024]
[1743397552934,12.35127346,125.59,125.54,0.06119024]
[1743397553135,7.9631,125.59,125.54,8.02729024]
[1743397553332,15.68237346,125.6,125.54,0.06119024]
[1743397555139,3.3311,125.6,125.54,0.06119024]
[1743397555333,3.3311,125.6,125.54,12.4124637]
[1743397555638,3.3311,125.6,125.56,7.9644]
[1743397555834,12.35127346,125.62,125.57,91.9]
[1743397556138,12.35127346,125.62,125.57,91.952761]
[1743397556938,7.9622,125.61,125.57,99.916661]
[1743397557144,12.35127346,125.62,125.57,91.952761]
[1743397557443,7.9615,125.62,125.57,91.952761]
[1743397558239,7.9607,125.63,125.57,91.952761]
[1743397558538,19.66367346,125.64,125.58,7.9634]
[1743397558736,7.9613,125.62,125.58,7.9634]
[1743397558937,7.9613,125.62,125.6,0.05081906]
[1743397559236,19.66367346,125.64,125.6,0.05081906]
[1743397559439,7.9609,125.63,125.6,0.05081906]
[1743397561139,19.66367346,125.64,125.6,29.85081906]
[1743397561140,27.62367346,125.64,125.6,29.85081906]
[1743397561533,27.62367346,125.64,125.6,37.81291906]
[1743397562240,27.62367346,125.64,125.61,7.9616]
[1743397562943,12.35127346,125.66,125.6,29.85081906]
[1743397563142,12.35127346,125.66,125.6,29.8]
[1743397563438,12.35127346,125.66,125.62,0.05299809]
[1743397563641,12.35127346,125.66,125.63,29.88]
[1743397563946,20.31007346,125.66,125.63,29.88]
[1743397564346,12.35127346,125.66,125.63,29.88]
[1743397564550,3.6853,125.69,125.64,29.84]
[1743397564942,3.6853,125.69,125.65,0.05029338]
[1743397565350,3.6853,125.69,125.66,7.9582]
[1743397565543,3.6853,125.69,125.66,38.0182]
[1743397566246,3.6853,125.69,125.66,30.06]
[1743397567246,3.6853,125.69,125.65,0.05029338]
[1743397567447,7.9578,125.68,125.65,0.05029338]
[1743397567648,7.9578,125.68,125.65,62.05029338]
[1743397568040,11.6422,125.69,125.65,62.05029338]
[1743397568248,12.35127346,125.72,125.65,62.05029338]
[1743397568451,12.35127346,125.72,125.65,62.0]
[1743397568743,7.9557,125.71,125.67,0.05767177]
[1743397569046,1.38452357,125.81,125.68,30.0]
[1743397569249,1.38452357,125.81,125.74,12.35127346]
[1743397569446,52.50889137,125.83,125.75,30.24]
[1743397569747,7.9498,125.8,125.77,0.05302319]
[1743397570447,20.30047346,125.81,125.77,0.05302319]
[1743397570841,12.35127346,125.81,125.77,0.05302319]
[1743397571250,12.35127346,125.79,125.77,0.05302319]
[1743397571448,12.35127346,125.79,125.73,38.1736]
[1743397571649,7.951,125.78,125.73,38.1736]
[1743397571850,12.35127346,125.77,125.73,92.22]
[1743397572047,12.35127346,125.77,125.71,286.56]
[1743397572251,7.9527,125.76,125.71,286.56]
[1743397572650,12.40268972,125.75,125.72,0.05670296]
[1743397572847,12.35127346,125.73,125.72,0.05670296]
[1743397573352,12.35127346,125.73,125.67,30.24]
[1743397573855,12.35127346,125.75,125.67,30.24]
[1743397573856,7.9561,125.7,125.67,30.24]
[1743397574445,7.9561,125.7,125.67,30.29529894]
[1743397574446,8.0124659,125.7,125.67,30.29529894]
[1743397575144,8.0124659,125.7,125.68,62.0]
[1743397576343,7.9567,125.69,125.68,62.0]
[1743397576548,0.0563659,125.7,125.67,0.05529894]
[1743397577056,49.96478059,125.7,125.62,30.22]
[1743397577251,49.90841469,125.7,125.62,30.22]
[1743397577451,7.9591,125.66,125.62,30.22]
[1743397577652,7.9591,125.66,125.62,38.1809]
[1743397578250,0.05960092,125.65,125.63,8.0126471]
[1743397578455,7.9581,125.67,125.63,0.0522471]
[1743397578656,0.05371497,125.65,125.63,0.0522471]
[1743397578951,7.9582,125.67,125.63,0.0522471]
[1743397579457,0.06043812,125.66,125.64,62.0]
[1743397580053,8.01903812,125.66,125.64,62.0]
[1743397580354,0.06043812,125.66,125.64,62.0]
[1743397583656,8.01913812,125.66,125.64,62.0]
[1743397584049,0.06043812,125.66,125.64,62.0]
[1743397584554,7.9598,125.64,125.63,0.0522471]
[1743397586247,7.9595,125.65,125.63,0.0522471]
[1743397586555,0.06043812,125.66,125.63,0.0522471]
[1743397586756,7.9592,125.65,125.63,0.0522471]
[1743397587356,7.9592,125.65,125.63,62.0522471]
[1743397587551,7.9598,125.64,125.63,0.0522471]
[1743397589156,7.9594,125.65,125.63,0.0522471]
[1743397589661,0.06043812,125.66,125.63,0.0522471]
[1743397590368,8.01943812,125.66,125.63,0.0522471]
[1743397590759,0.06043812,125.66,125.63,0.0522471]
[1743397591157,0.06043812,125.66,125.63,8.0124471]
[1743397591363,0.06043812,125.66,125.63,0.0522471]
[1743397591858,7.9592,125.65,125.63,0.0522471]
[1743397592261,0.06043812,125.66,125.63,0.0522471]
[1743397592663,7.9592,125.65,125.63,0.0522471]
[1743397593067,0.06043812,125.66,125.63,0.0522471]
[1743397594064,8.01913812,125.66,125.64,62.0]
[1743397595770,0.06043812,125.66,125.64,62.0]
[1743397595973,0.06043812,125.66,125.65,7.9592]
[1743397597172,0.06043812,125.66,125.65,38.0792]
[1743397597467,0.06043812,125.66,125.65,50.39076895]
[1743397598564,3.4,125.73,125.65,50.39156895]
[1743397598764,3.4,125.73,125.68,12.31156895]
[1743397598970,3.4,125.73,125.68,42.43156895]
[1743397599874,0.05227621,125.72,125.69,0.05139307]
[1743397600469,0.05227621,125.72,125.7,62.0]
[1743397600670,0.05227621,125.72,125.7,69.9556]
[1743397602074,0.05227621,125.72,125.7,62.0]
[1743397602463,0.05227621,125.72,125.7,69.9556]
[1743397602667,0.05227621,125.72,125.7,62.0]
[1743397603371,0.05227621,125.72,125.71,7.9554]
[1743397604971,0.05227621,125.72,125.7,69.9558]
[1743397605174,0.05227621,125.72,125.7,62.0]
[1743397605376,8.00737621,125.72,125.7,62.0]
[1743397605877,8.00737621,125.72,125.69,0.05139307]
[1743397606175,0.05227621,125.72,125.69,0.05139307]
[1743397606674,7.956,125.7,125.69,0.05139307]
[1743397607576,3.3465,125.71,125.69,0.05139307]
[1743397607779,0.05227621,125.72,125.69,0.05139307]
[1743397608272,0.05227621,125.72,125.7,7.9556]
[1743397608478,0.05227621,125.72,125.69,0.05139307]
[1743397608975,0.05227621,125.72,125.71,7.9554]
[1743397609170,0.05227621,125.72,125.71,38.0554]
[1743397612380,0.05227621,125.72,125.71,100.0554]
[1743397615677,0.05227621,125.72,125.69,0.05139307]
[1743397616276,8.00757621,125.72,125.69,8.00769307]
[1743397616676,8.00757621,125.72,125.69,0.05139307]
[1743397616677,7.9557,125.71,125.69,0.05139307]
[1743397616881,12.36384516,125.72,125.69,0.05139307]
[1743397618283,0.05227621,125.72,125.69,0.05139307]
[1743397618677,0.05227621,125.72,125.69,62.05139307]
[1743397618879,7.9557,125.71,125.69,62.05139307]
[1743397619080,0.05227621,125.72,125.69,62.05139307]
[1743397619482,7.9557,125.71,125.69,62.05139307]
[1743397621385,12.31156895,125.7,125.64,29.96]
[1743397621784,7.9578,125.68,125.64,37.9195]
[1743397621983,7.9578,125.68,125.62,660.10396895]
[1743397621984,12.31156895,125.7,125.63,29.96]
[1743397622485,0.05481334,125.68,125.65,0.05311056]
[1743397623094,7.9585,125.67,125.65,0.05311056]
[1743397623389,0.05481334,125.68,125.65,0.05311056]
[1743397623589,8.01251334,125.68,125.65,0.05311056]
[1743397623888,0.05481334,125.68,125.65,0.05311056]
[1743397624190,8.01251334,125.68,125.65,70.01231056]
[1743397624584,0.05481334,125.68,125.65,62.05311056]
[1743397624780,8.01211334,125.68,125.65,70.01201056]
[1743397625091,0.05481334,125.68,125.65,62.05311056]
[1743397625284,0.05481334,125.68,125.65,0.05311056]
[1743397627791,7.958,125.67,125.65,0.05311056]
[1743397627994,0.05481334,125.68,125.65,0.05311056]
[1743397628287,8.01271334,125.68,125.66,62.0]
[1743397630389,0.05481334,125.68,125.66,62.0]
[1743397630993,8.01211334,125.68,125.66,62.0]
[1743397631485,7.9579,125.67,125.66,62.0]
[1743397631791,0.05481334,125.68,125.66,62.0]
[1743397632492,7.9579,125.67,125.66,62.0]
[1743397632995,7.9586,125.66,125.65,0.05311056]
[1743397639199,7.9613,125.62,125.59,37.7226]
[1743397639395,12.31156895,125.65,125.59,29.76]
[1743397639592,19.44586895,125.67,125.59,42.07156895]
[1743397640298,0.05246355,125.64,125.62,0.05640258]
[1743397640497,0.05246355,125.64,125.63,7.9603]
[1743397640697,0.05246355,125.64,125.62,29.85640258]
[1743397641100,0.05246355,125.64,125.62,37.81720258]
[1743397642198,8.01226355,125.64,125.63,62.0]
[1743397642398,0.05246355,125.64,125.62,0.05640258]
[1743397643897,7.9605,125.63,125.62,0.05640258]
[1743397644099,0.05246355,125.64,125.62,0.05640258]
[1743397644602,8.01266355,125.64,125.62,0.05640258]
[1743397644899,0.05246355,125.64,125.62,0.05640258]
[1743397645294,7.9605,125.63,125.62,0.05640258]
[1743397645504,29.74,125.63,125.47,12.31156895]
[1743397645701,12.31156895,125.56,125.47,12.31156895]
[1743397645902,20.27696895,125.56,125.5,7.9682]
[1743397646097,42.21156895,125.58,125.49,12.31156895]
[1743397646305,12.31156895,125.6,125.51,12.31156895]
[1743397646500,0.05600702,125.54,125.52,37.867]
[1743397646701,0.05600702,125.54,125.52,29.9]
[1743397646897,7.9634,125.59,125.53,7.9668]
[1743397647300,0.05951786,125.57,125.55,0.05430846]
[1743397647807,8.02381786,125.57,125.55,0.05430846]
[1743397648505,0.05951786,125.57,125.55,0.05430846]
[1743397649707,0.05951786,125.57,125.55,62.05430846]
[1743397650807,0.05951786,125.57,125.55,91.91430846]
[1743397656010,0.05951786,125.57,125.55,99.87970846]
[1743397656608,0.05951786,125.57,125.55,91.91430846]
[1743397658317,0.05951786,125.57,125.55,62.05430846]
[1743397659610,0.05951786,125.57,125.55,70.01980846]
[1743397660713,0.05951786,125.57,125.56,7.9649]
[1743397663116,0.05951786,125.57,125.55,70.01960846]
[1743397665117,0.05951786,125.57,125.55,62.05430846]
[1743397665816,0.05951786,125.57,125.55,70.01950846]
[1743397666616,0.05951786,125.57,125.56,7.9649]
[1743397667216,0.05951786,125.57,125.56,37.5249]
[1743397668013,0.05951786,125.57,125.55,62.05430846]
[1743397668014,7.94910119,125.57,125.55,62.05430846]
[1743397668517,7.88958333,125.56,125.55,62.05430846]
[1743397669622,7.88958333,125.56,125.55,0.05430846]
[1743397670817,15.85448333,125.56,125.55,0.05430846]
[1743397671018,7.88958333,125.54,125.52,29.52]
[1743397671421,7.88958333,125.53,125.47,358.0]
[1743397671722,7.88958333,125.5,125.47,29.56]
[1743397671913,7.88958333,125.52,125.47,37.44958333]
[1743397672118,0.05223121,125.5,125.48,7.88958333]
[1743397672622,0.05223121,125.5,125.49,69.9689]
[1743397673123,0.05223121,125.5,125.49,62.0]
[1743397674921,0.05223121,125.5,125.49,69.9693]
[1743397678924,0.05223121,125.5,125.49,62.0]
[1743397680022,0.05223121,125.5,125.49,69.9693]
[1743397682728,0.05223121,125.5,125.49,77.85888333]
[1743397683623,362.0,125.62,125.49,69.88958333]
[1743397683929,7.88958333,125.57,125.54,7.9658]
[1743397684129,7.88958333,125.57,125.54,29.48]
[1743397684827,0.05266499,125.57,125.54,37.42729036]
[1743397685026,0.05266499,125.57,125.56,7.9649]
[1743397685424,0.05266499,125.57,125.54,37.42729036]
[1743397685625,7.88958333,125.55,125.54,0.05770703]
[1743397686221,7.88958333,125.56,125.54,0.05770703]
[1743397686831,7.94224832,125.57,125.54,29.59770703]
[1743397687626,7.94224832,125.57,125.54,37.56350703]
[1743397687833,7.94224832,125.57,125.54,29.59770703]
[1743397688131,7.88958333,125.56,125.54,29.59770703]
[1743397688336,7.88958333,125.55,125.54,0.05770703]
[1743397688529,15.85508333,125.55,125.54,0.05770703]
[1743397693334,15.85508333,125.55,125.5,29.56]
[1743397693335,7.968,125.52,125.5,29.56]
[1743397693635,7.88958333,125.54,125.49,99.46958333]
[1743397694331,7.88958333,125.54,125.49,69.88958333]
[1743397694539,0.05466316,125.53,125.5,29.63209262]
[1743397694733,0.05466316,125.53,125.52,7.9674]
[1743397697841,0.05466316,125.53,125.51,15.85758333]
[1743397698041,0.05466316,125.53,125.51,7.968]
[1743397698242,0.05466316,125.53,125.51,7.88958333]
[1743397698443,0.05466316,125.53,125.52,7.9674]
[1743397699047,0.05466316,125.53,125.52,15.85698333]
[1743397699242,7.88958333,125.58,125.56,7.9649]
[1743397700143,7.88958333,125.58,125.54,29.56]
[1743397700342,15.90797318,125.58,125.56,0.06054203]
[1743397701752,7.9643,125.57,125.56,0.06054203]
[1743397703551,15.85388333,125.57,125.56,0.06054203]
[1743397704142,0.05428985,125.58,125.56,0.06054203]
[1743397704349,7.94387318,125.58,125.56,0.06054203]